bitfinex-derivatives/quotes_ETHF0:USTF0_20251006
["timestamp","ask_amount","ask_price","bid_price","bid_amount"]
[1759741327787,0.6831,4565.0,4564.9,3.60199]
[1759741328103,0.9053,4565.0,4564.9,3.60199]
[1759741329203,0.4628,4565.0,4564.9,3.60199]
[1759741329402,0.4628,4565.0,4564.9,3.82099]
[1759741330797,0.6831,4565.0,4564.9,3.82099]
[1759741332298,1.1717333,4565.0,4564.9,3.82099]
[1759741332900,0.9514333,4565.0,4564.9,3.82099]
[1759741333399,1.1717333,4565.0,4564.9,3.82099]
[1759741333600,0.9514333,4565.0,4564.9,3.82099]
[1759741334602,0.4628,4565.0,4564.9,3.82099]
[1759741335206,0.00237455,4565.3,4565.2,0.39416]
[1759741335401,0.126,4566.0,4565.9,0.3941]
[1759741335604,0.84137106,4566.5,4566.4,0.39406]
[1759741335804,0.353,4566.5,4566.4,41.25146]
[1759741336502,0.35470288,4566.5,4566.4,41.25146]
[1759741337304,0.35470288,4566.5,4566.4,40.8291]
[1759741337305,0.69150288,4566.5,4566.4,40.8291]
[1759741341112,0.47120288,4566.5,4566.4,40.8467]
[1759741343213,0.47120288,4566.5,4566.4,44.0545]
[1759741344211,0.47120288,4566.5,4566.4,44.227612]
[1759741347320,0.33850288,4566.5,4566.4,44.227612]
[1759741348919,0.00170288,4566.5,4566.4,44.227612]
[1759741349613,0.32960288,4566.5,4566.4,44.227612]
[1759741350722,0.32960288,4566.5,4566.4,44.0545]
[1759741350919,0.45370288,4566.5,4566.4,44.0369]
[1759741351720,0.45370288,4566.5,4566.4,44.0545]
[1759741353422,0.45370288,4566.5,4566.4,44.22266342]
[1759741355227,0.45370288,4566.5,4566.4,44.0545]
[1759741355725,0.00170288,4566.5,4566.4,44.22358649]
[1759741357721,0.1327,4567.5,4567.1,0.0281]
[1759741357923,0.1327,4567.5,4567.4,0.46067]
[1759741358328,0.4702,4567.5,4567.4,41.26067]
[1759741358718,0.47200988,4567.5,4567.4,41.2628111]
[1759741358925,0.33930988,4567.5,4567.4,41.4818111]
[1759741360325,0.47260988,4567.5,4567.4,41.4818111]
[1759741360827,0.47260988,4567.5,4567.4,41.4659111]
[1759741362226,0.47260988,4567.5,4567.4,41.4818111]
[1759741362522,0.95806954,4567.5,4567.4,41.4818111]
[1759741363727,0.48726954,4567.5,4567.4,41.4818111]
[1759741364029,0.82476954,4567.5,4567.4,41.4818111]
[1759741367530,0.48726954,4567.5,4567.4,41.4818111]
[1759741367931,0.022,4567.9,4567.8,0.44594]
[1759741368228,0.022,4567.9,4567.8,3.88904]
[1759741368830,0.0243829,4567.9,4567.8,3.88904]
[1759741370431,0.0243829,4567.9,4567.8,44.68904]
[1759741373734,0.3495829,4567.9,4567.8,44.68904]
[1759741376741,0.0243829,4567.9,4567.8,44.68904]
[1759741377536,0.3495829,4567.9,4567.8,40.826]
[1759741377839,0.3495829,4567.9,4567.8,41.045]
[1759741378031,0.3495829,4567.9,4567.8,44.2528]
[1759741378435,0.3495829,4567.9,4567.8,44.2691]
[1759741378731,0.3495829,4567.9,4567.8,44.2528]
[1759741379538,0.3495829,4567.9,4567.8,44.0338]
[1759741379740,0.3495829,4567.9,4567.8,44.2528]
[1759741380242,0.3495829,4567.9,4567.8,44.0338]
[1759741380942,0.3495829,4567.9,4567.8,44.2691]
[1759741381347,0.3495829,4567.9,4567.8,44.0501]
[1759741381532,0.3495829,4567.9,4567.8,44.2691]
[1759741382133,0.0243829,4567.9,4567.8,44.2691]
[1759741382546,0.3495829,4567.9,4567.8,44.2691]
[1759741382740,0.3495829,4567.9,4567.8,44.2268]
[1759741383245,0.3495829,4567.9,4567.8,44.2431]
[1759741383540,0.3495829,4567.9,4567.8,44.2268]
[1759741384443,0.3495829,4567.9,4567.8,44.2431]
[1759741389944,0.3495829,4567.9,4567.8,44.2268]
[1759741390140,0.3495829,4567.9,4567.8,44.2431]
[1759741394453,6.2269093,4567.9,4567.8,40.8]
[1759741394946,0.8329793,4567.9,4567.8,44.0078]
[1759741395153,0.3495829,4567.9,4567.8,44.2431]
[1759741396545,0.0243829,4567.9,4567.8,44.2431]
[1759741397251,0.3495829,4567.9,4567.8,44.2431]
[1759741399656,0.0243829,4567.9,4567.8,44.2431]
[1759741400358,0.3420829,4567.9,4567.8,44.2431]
[1759741401262,0.0243829,4567.9,4567.8,44.2431]
[1759741401451,0.3420829,4567.9,4567.8,44.2431]
[1759741402653,0.0243829,4567.9,4567.8,44.2431]
[1759741404354,0.1333,4568.5,4567.8,44.2431]
[1759741404355,0.1333,4568.5,4568.4,0.56548]
[1759741404551,0.1333,4568.5,4568.4,3.99228]
[1759741405061,0.61593138,4568.5,4568.4,44.79228]
[1759741405250,0.61847098,4568.5,4568.4,44.75158]
[1759741406557,0.93617098,4568.5,4568.4,44.68648]
[1759741407460,1.33005098,4568.5,4568.4,41.019]
[1759741407657,6.33005098,4568.5,4568.4,40.8]
[1759741407955,1.25672,4568.0,4567.9,3.2078]
[1759741408162,1.73935138,4568.0,4567.9,3.2078]
[1759741408560,1.34543138,4568.0,4567.9,3.2078]
[1759741412355,1.34543138,4568.0,4567.9,3.3387]
[1759741412554,0.93003138,4568.0,4567.9,3.3794]
[1759741412858,0.80033138,4568.0,4567.9,3.5984]
[1759741413058,0.80033138,4568.0,4567.9,44.3984]
[1759741413259,0.93003138,4568.0,4567.9,44.3984]
[1759741413966,0.93003138,4568.0,4567.9,44.3577]
[1759741414858,0.93003138,4568.0,4567.9,44.3977]
[1759741415365,0.93003138,4568.0,4567.9,44.3577]
[1759741416357,0.93003138,4568.0,4567.9,44.3977]
[1759741416763,0.93003138,4568.0,4567.9,44.3577]
[1759741417767,0.93003138,4568.0,4567.9,44.3977]
[1759741418175,0.80033138,4568.0,4567.9,44.3977]
[1759741418373,0.48263138,4568.0,4567.9,44.3977]
[1759741422482,0.3323,4568.2,4568.1,0.168]
[1759741422686,0.3323,4568.2,4568.1,0.387]
[1759741423396,0.3323,4568.2,4568.1,41.187]
[1759741424684,0.3323,4568.2,4568.1,41.147]
[1759741426486,0.3323,4568.2,4568.1,41.187]
[1759741428888,0.3323,4568.2,4568.1,41.58091]
[1759741430789,0.3323,4568.2,4568.1,44.78871]
[1759741431686,0.4696396,4568.5,4568.4,0.56608]
[1759741431890,0.6742396,4568.5,4568.4,0.3502]
[1759741432090,1.36839764,4568.5,4568.4,0.3502]
[1759741444690,1.36839764,4568.5,4568.4,3.558]
[1759741450003,1.36839764,4568.5,4568.4,3.88628]
[1759741456500,1.76227764,4568.5,4568.4,3.2078]
[1759741456706,6.76227764,4568.5,4568.4,3.2078]
[1759741459811,6.36839764,4568.5,4568.4,3.2078]
[1759741460308,1.36839764,4568.5,4568.4,3.2078]
[1759741460611,1.58739764,4568.5,4568.4,3.2078]
[1759741460813,1.36839764,4568.5,4568.4,3.2078]
[1759741465713,0.95189764,4568.5,4568.4,3.3796]
[1759741466412,1.39139764,4568.5,4568.4,3.3388]
[1759741467416,1.39139764,4568.5,4568.4,0.131]
[1759741467614,1.39139764,4568.5,4568.4,3.3388]
[1759741467810,1.17639764,4568.5,4568.4,3.3388]
[1759741470118,1.39139764,4568.5,4568.4,3.3388]
[1759741471918,1.17639764,4568.5,4568.4,3.3388]
[1759741473614,0.95189764,4568.5,4568.4,3.3796]
[1759741475324,0.95189764,4568.5,4568.4,44.1796]
[1759741475724,0.95189764,4568.5,4568.4,44.1388]
[1759741476026,0.95189764,4568.5,4568.4,44.179]
[1759741477322,0.3149,4568.8,4568.7,0.56262]
[1759741477519,0.3149,4568.8,4568.7,0.78162]
[1759741477921,0.3149,4568.8,4568.7,41.58162]
[1759741478326,0.31728986,4568.8,4568.7,41.58162]
[1759741479627,0.31728986,4568.8,4568.7,41.54142]
[1759741479928,0.31728986,4568.8,4568.7,41.58162]
[1759741480228,0.31728986,4568.8,4568.7,41.54142]
[1759741484521,0.31728986,4568.8,4568.7,41.019]
[1759741485831,0.31728986,4568.8,4568.7,40.8]
[1759741489431,0.79264825,4568.8,4568.7,40.8]
[1759741490434,0.4414,4568.7,4568.6,0.45812]
[1759741490634,1.24535839,4568.7,4568.6,0.45812]
[1759741490933,1.24535839,4568.7,4568.6,0.52322]
[1759741492033,1.02945839,4568.7,4568.6,0.52322]
[1759741492233,0.80395839,4568.7,4568.6,0.56392]
[1759741492731,0.47535839,4568.7,4568.6,0.56392]
[1759741493036,0.80395839,4568.7,4568.6,0.56392]
[1759741493437,0.80395839,4568.7,4568.6,41.36392]
[1759741497139,0.47535839,4568.7,4568.6,41.36392]
[1759741497539,0.80395839,4568.7,4568.6,41.36392]
[1759741499642,0.80395839,4568.7,4568.6,41.32322]
[1759741500044,0.80395839,4568.7,4568.6,41.36392]
[1759741501936,0.47535839,4568.7,4568.6,41.36392]
[1759741502141,0.00238986,4568.8,4568.7,0.0407]
[1759741502343,0.00238986,4568.8,4568.7,0.3892]
[1759741502739,0.00238986,4568.8,4568.7,41.1892]
[1759741503146,9.86e-06,4568.8,4568.7,41.1892]
[1759741503345,0.02110354,4569.6,4569.5,1.24135]
[1759741503645,0.02110354,4569.6,4569.5,4.66815]
[1759741504034,0.02110354,4569.6,4569.5,45.46815]
[1759741504235,0.0235811,4569.6,4569.5,45.46815]
[1759741505546,0.0235811,4569.6,4569.5,45.6372985]
[1759741507240,0.0235811,4569.6,4569.5,50.6372985]
[1759741510646,0.3286,4570.2,4570.1,0.3937]
[1759741510851,0.6774,4570.5,4570.4,1.13157]
[1759741511046,0.6774,4570.5,4570.4,1.35057]
[1759741511649,0.89497594,4570.5,4570.4,1.03067]
[1759741514453,0.89497594,4570.5,4570.4,0.81917]
[1759741516647,0.89497594,4570.5,4570.4,1.03067]
[1759741519356,0.89497594,4570.5,4570.4,0.81917]
[1759741520952,0.89497594,4570.5,4570.4,4.23117]
[1759741521354,0.89497594,4570.5,4570.4,4.55117]
[1759741521555,0.89497594,4570.5,4570.4,4.23117]
[1759741521951,0.89497594,4570.5,4570.4,4.02697]
[1759741522151,0.89497594,4570.5,4570.4,3.60147]
[1759741522754,0.89497594,4570.5,4570.4,3.81467]
[1759741523153,0.89497594,4570.5,4570.4,4.33887]
[1759741523154,0.00167594,4570.5,4570.4,4.33887]
[1759741523357,0.3104,4571.4,4571.3,0.60679]
[1759741523653,0.7321,4571.4,4571.3,0.60679]
[1759741523849,1.18605074,4571.4,4571.3,41.40679]
[1759741524056,1.18605074,4571.4,4571.3,41.72679]
[1759741524250,1.18605074,4571.4,4571.3,41.72880836]
[1759741524453,1.18765562,4571.4,4571.3,41.72880836]
[1759741524653,0.00160488,4571.4,4571.3,41.94780836]
[1759741524957,0.31200488,4571.4,4571.3,41.94780836]
[1759741525450,0.00160488,4571.4,4571.3,41.94780836]
[1759741526158,0.31200488,4571.4,4571.3,41.40880836]
[1759741526455,0.31200488,4571.4,4571.3,41.94780836]
[1759741526960,0.00160488,4571.4,4571.3,41.94780836]
[1759741529264,0.31200488,4571.4,4571.3,41.94781836]
[1759741530856,0.00160488,4571.4,4571.3,41.94781836]
[1759741531258,0.31200488,4571.4,4571.3,41.94781836]
[1759741531965,0.00160488,4571.4,4571.3,41.94781836]
[1759741533259,0.31200488,4571.4,4571.3,41.94781836]
[1759741535166,0.31200488,4571.4,4571.3,41.55421836]
[1759741535466,0.31200488,4571.4,4571.3,41.55001836]
[1759741535869,0.00160488,4571.4,4571.3,41.55001836]
[1759741536171,0.00160488,4571.4,4571.3,41.33101836]
[1759741536376,0.00160488,4571.4,4571.3,41.55001836]
[1759741539266,0.00160488,4571.4,4571.3,41.33101836]
[1759741539466,0.33430488,4571.4,4571.3,41.55001836]
[1759741541068,0.00160488,4571.4,4571.3,41.55001836]
[1759741544274,0.46760738,4572.5,4572.4,1.1309]
[1759741544480,0.82749899,4572.5,4572.4,4.3387]
[1759741544781,0.82749899,4572.5,4572.4,4.1642]
[1759741545281,0.83020273,4572.5,4572.4,4.1642]
[1759741545678,0.96540273,4572.5,4572.4,4.1642]
[1759741546480,1.29810273,4572.5,4572.4,4.1642]
[1759741548783,1.16290273,4572.5,4572.4,4.1642]
[1759741552176,0.7752,4572.2,4572.1,0.7363]
[1759741552380,1.22919888,4572.2,4572.1,4.1631]
[1759741552783,1.22919888,4572.2,4572.1,3.9441]
[1759741553289,0.67519888,4572.2,4572.1,3.9441]
[1759741555289,1.00939888,4572.2,4572.1,3.9441]
[1759741555484,1.22919888,4572.2,4572.1,3.9441]
[1759741557991,0.67519888,4572.2,4572.1,3.9441]
[1759741558492,1.00939888,4572.2,4572.1,3.9441]
[1759741559790,1.00939888,4572.2,4572.1,4.1631]
[1759741559993,0.67519888,4572.2,4572.1,4.1631]
[1759741560292,0.45399888,4572.2,4572.1,4.1631]
[1759741560491,1.40359706,4572.4,4572.3,0.7363]
[1759741561492,0.45468706,4572.4,4572.3,0.7363]
[1759741562094,0.45468706,4572.4,4572.3,41.7553]
[1759741566098,0.78888706,4572.4,4572.3,41.7553]
[1759741567298,1.22988706,4572.4,4572.3,0.7363]
[1759741571595,0.7752,4572.2,4572.1,0.3243]
[1759741571801,1.22988706,4572.2,4572.1,0.5307]
[1759741571998,1.22988706,4572.2,4572.1,0.7363]
[1759741572400,0.45468706,4572.2,4572.1,0.7363]
[1759741572993,0.45468706,4572.2,4572.1,3.9441]
[1759741573195,0.00270374,4572.5,4572.4,1.1298]
[1759741573398,0.45785313,4572.5,4572.4,1.3488]
[1759741573698,0.45785313,4572.5,4572.4,47.1488]
[1759741573892,0.00270374,4572.5,4572.4,47.1488]
[1759741574093,0.45791709,4572.5,4572.4,47.1488]
[1759741574400,0.00270374,4572.5,4572.4,47.1488]
[1759741575795,0.00270374,4572.5,4572.4,42.1488]
[1759741590907,0.32980374,4572.5,4572.4,41.9298]
[1759741591114,0.32980374,4572.5,4572.4,42.1488]
[1759741591612,0.00270374,4572.5,4572.4,42.1488]
[1759741592615,0.45329423,4572.5,4572.4,42.1488]
[1759741596008,0.45329423,4572.5,4572.4,41.9298]
[1759741596209,0.45329423,4572.5,4572.4,42.1488]
[1759741596409,0.00270374,4572.5,4572.4,42.1488]
[1759741597506,0.022,4572.9,4572.4,41.7553]
[1759741597711,0.022,4572.9,4572.8,4.37596]
[1759741597918,0.022,4572.9,4572.8,4.59496]
[1759741598122,0.022,4572.9,4572.8,45.39496]
[1759741598416,0.3419,4572.9,4572.8,45.0015]
[1759741598615,0.34405194,4572.9,4572.8,45.0015]
[1759741600717,0.34405194,4572.9,4572.8,44.7825]
[1759741601022,0.34405194,4572.9,4572.8,45.0015]
[1759741604523,0.02415194,4572.9,4572.8,45.0015]
[1759741604726,0.34405194,4572.9,4572.8,45.0015]
[1759741605920,0.34405194,4572.9,4572.8,44.7825]
[1759741606117,5.34405194,4572.9,4572.8,3.9825]
[1759741606317,5.34405194,4572.9,4571.7,1.5655393]
[1759741606318,0.4344,4572.2,4572.1,0.3342]
[1759741606531,0.7543,4572.2,4572.1,0.3342]
[1759741606724,0.39348,4572.7,4572.2,0.4405]
[1759741606924,0.2138,4572.6,4572.5,0.52379]
[1759741607124,0.2138,4572.6,4572.5,1.29849]
[1759741607328,0.5337,4572.6,4572.5,1.29849]
[1759741607529,0.7543,4572.6,4572.5,1.29849]
[1759741607722,0.7543,4572.6,4572.5,0.7747]
[1759741607919,5.7543,4572.6,4572.2,0.219]
[1759741608129,5.7543,4572.6,4572.1,41.19352]
[1759741608130,0.7468,4572.4,4572.3,0.559]
[1759741608432,0.7468,4572.4,4572.3,0.7661]
[1759741608823,0.7468,4572.4,4572.3,0.559]
[1759741609224,0.7468,4572.2,4572.1,40.8]
[1759741609930,0.3174,4571.6,4571.4,0.3357]
[1759741610131,0.8719,4571.5,4571.4,0.559]
[1759741610429,0.7468,4571.5,4571.4,0.7661]
[1759741611337,0.7468,4572.1,4572.0,0.39353]
[1759741611634,0.9658,4572.1,4572.0,0.4304]
[1759741611832,0.9658,4572.1,4572.0,0.7661]
[1759741612334,0.7468,4571.7,4571.6,0.95256]
[1759741613335,0.7468,4571.7,4571.6,1.15966]
[1759741613938,0.4294,4571.4,4571.3,40.80201836]
[1759741614237,0.7468,4571.4,4571.3,0.76811836]
[1759741614828,1.14038,4571.4,4571.3,0.22531836]
[1759741615036,1.14038,4571.4,4571.3,0.00201836]
[1759741615834,0.7468,4571.4,4571.3,0.76811836]
[1759741617238,3.2078,4571.7,4571.6,0.7661]
[1759741617432,3.4115,4572.2,4572.1,1.15962]
[1759741617834,3.7289,4572.2,4572.1,41.95962]
[1759741618740,0.5211,4572.2,4572.1,41.95962]
[1759741619834,0.5211,4572.2,4572.1,41.2304]
[1759741620036,0.5211,4572.2,4572.1,41.5661]
[1759741620535,0.4294,4571.6,4571.5,3.4311]
[1759741620734,1.14037,4571.6,4571.5,3.2078]
[1759741621534,1.14037,4571.6,4571.5,3.4311]
[1759741621741,0.7468,4571.6,4571.5,4.105]
[1759741622042,0.2037,4572.2,4572.1,1.15962]
[1759741622342,0.9658,4572.2,4572.1,1.15962]
[1759741622941,0.9658,4572.2,4572.1,0.7661]
[1759741623243,0.7468,4571.9,4571.8,0.559]
[1759741623442,1.14035,4571.9,4571.8,0.559]
[1759741623640,1.14035,4571.9,4571.8,41.359]
[1759741623641,0.7468,4571.9,4571.8,41.359]
[1759741624137,0.7468,4571.9,4571.5,3.3389]
[1759741624138,0.7468,4571.9,4571.5,3.2078]
[1759741624342,0.7468,4571.4,4571.3,0.00201836]
[1759741624542,0.9668,4571.4,4571.3,0.00201836]
[1759741624742,0.9668,4571.4,4571.3,0.22531836]
[1759741624940,0.9668,4571.4,4571.3,0.56101836]
[1759741625541,0.9668,4571.4,4571.3,0.00201836]
[1759741625941,0.9668,4571.4,4571.3,0.22531836]
[1759741626140,0.9668,4571.4,4571.3,0.00201836]
[1759741626940,5.9668,4571.4,4571.3,0.00201836]
[1759741627146,0.4294,4571.1,4570.5,3.2078]
[1759741627342,0.7468,4570.6,4570.5,3.2078]
[1759741627639,0.7468,4570.6,4569.9,3.5435]
[1759741627640,0.7468,4570.3,4569.9,3.5435]
[1759741627943,0.8719,4570.0,4569.5,0.3357]
[1759741628139,0.8719,4569.5,4569.4,3.2078]
[1759741628342,0.87444397,4569.5,4569.4,3.20999137]
[1759741629148,0.87444397,4569.5,4569.4,3.43329137]
[1759741629448,0.74934397,4569.5,4569.4,3.97609137]
[1759741629841,0.87444397,4569.5,4569.4,3.20999137]
[1759741630046,0.87444397,4569.5,4569.4,3.43329137]
[1759741630238,0.87444397,4569.5,4569.4,3.76899137]
[1759741631048,0.74934397,4569.5,4569.4,3.97609137]
[1759741631442,0.87444397,4569.5,4569.4,3.76899137]
[1759741631743,0.87444397,4569.5,4569.4,3.43329137]
[1759741631942,5.87444397,4569.5,4569.4,0.00219137]
[1759741632539,9.08224397,4569.5,4569.4,0.00219137]
[1759741632946,9.08224397,4569.5,4569.4,0.22549137]
[1759741633148,9.08224397,4569.5,4569.4,0.56119137]
[1759741633647,0.00254397,4569.5,4569.4,1.16205137]
[1759741633846,3.97e-06,4569.5,4569.4,4.36985137]
[1759741634246,3.97e-06,4569.5,4569.4,9.36985137]
[1759741634442,3.97e-06,4569.5,4569.4,4.36985137]
[1759741634939,3.97e-06,4569.5,4569.4,4.03415137]
[1759741637146,3.97e-06,4569.5,4569.4,9.03415137]
[1759741637650,0.74680397,4569.5,4569.4,3.97609137]
[1759741637846,0.74680397,4569.5,4569.4,4.36985137]
[1759741638051,3.97e-06,4569.5,4569.4,4.03415137]
[1759741638452,3.97e-06,4569.5,4569.4,44.83415137]
[1759741640052,0.22190397,4569.5,4569.4,44.83415137]
[1759741640251,0.22190397,4569.5,4569.4,45.14525137]
[1759741640851,0.75990397,4569.5,4569.4,3.95149137]
[1759741641051,0.22190397,4569.5,4569.4,3.95149137]
[1759741641252,3.97e-06,4569.5,4569.4,3.64039137]
[1759741641750,0.22190397,4569.5,4569.4,3.95149137]
[1759741642147,0.53730397,4569.5,4569.4,3.95149137]
[1759741642352,0.88900397,4569.5,4569.4,0.00219137]
[1759741642850,0.75990397,4569.5,4569.4,0.74569137]
[1759741643046,0.97990397,4569.5,4569.4,0.74569137]
[1759741647653,1.10900397,4569.5,4569.4,0.74569137]
[1759741648154,1.10900397,4569.5,4569.4,0.21909137]
[1759741649154,1.10900397,4569.5,4569.4,0.00219137]
[1759741649349,0.1291,4569.0,4568.8,3.5189]
[1759741649548,1.15372,4568.7,4568.6,0.528]
[1759741649753,1.15372,4568.7,4568.6,0.2169]
[1759741649943,0.4445,4568.4,4568.3,0.7435]
[1759741650349,0.4445,4568.4,4568.3,0.74588813]
[1759741652156,0.5373,4568.4,4568.3,0.74588813]
[1759741652461,0.7599,4568.4,4568.3,0.74588813]
[1759741652850,0.7599,4568.4,4568.3,0.00238813]
[1759741653055,1.15375,4568.4,4568.3,0.00238813]
[1759741653255,0.7599,4568.4,4568.3,0.00238813]
[1759741653557,0.7599,4568.4,4568.3,0.21928813]
[1759741653857,0.7599,4568.4,4568.3,0.53038813]
[1759741654046,0.2084,4568.8,4568.7,0.72931]
[1759741654253,0.7324,4569.1,4569.0,1.07459]
[1759741654453,0.9524,4569.1,4569.0,0.753]
[1759741654754,0.2084,4569.1,4569.0,0.8872]
[1759741654952,0.7324,4568.6,4568.5,0.8872]
[1759741655146,0.7324,4568.6,4568.5,1.28104]
[1759741655147,0.4172,4568.6,4568.5,1.28104]
[1759741655352,0.3152,4568.9,4568.8,0.39381]
[1759741655554,0.5236,4568.9,4568.8,1.14681]
[1759741655750,0.3152,4569.2,4568.9,0.3355]
[1759741655952,3.7314,4569.4,4569.3,0.81127]
[1759741656161,3.9514,4569.4,4569.3,1.14677]
[1759741656464,4.1602,4569.4,4569.3,0.753]
[1759741657460,4.1602,4569.4,4569.3,0.2064]
[1759741658857,4.1602,4569.4,4569.3,0.753]
[1759741661557,4.55397,4569.4,4569.1,0.39378]
[1759741661954,0.2084,4568.9,4568.8,0.3355]
[1759741662159,0.9524,4568.9,4568.8,0.753]
[1759741662357,0.9524,4568.9,4568.8,1.14681]
[1759741663164,1.34621,4568.9,4568.8,0.753]
[1759741663654,0.9524,4568.9,4568.8,0.753]
[1759741663860,1.34621,4568.9,4568.8,0.753]
[1759741664552,0.9524,4568.9,4568.8,1.14681]
[1759741665158,0.2084,4568.9,4568.8,1.14681]
[1759741665361,3.2078,4569.4,4569.2,1.14678]
[1759741665362,0.7324,4569.3,4569.2,1.14678]
[1759741665559,0.9524,4569.3,4569.2,1.14678]
[1759741666960,0.7324,4569.3,4569.2,1.14678]
[1759741667167,0.9524,4569.3,4569.2,1.14678]
[1759741667361,1.34617,4569.3,4569.1,0.39378]
[1759741667762,0.7324,4569.3,4569.2,0.5121]
[1759741667958,0.9524,4569.3,4569.2,0.5121]
[1759741668666,0.9524,4569.3,4569.2,0.7234]
[1759741669062,0.7324,4569.3,4569.2,0.7234]
[1759741669263,0.4284,4569.3,4569.2,0.7234]
[1759741669459,0.9633,4569.3,4569.2,0.7234]
[1759741673274,0.9633,4569.3,4569.2,0.2047]
[1759741673572,0.9633,4569.3,4569.1,0.39378]
[1759741674173,0.6465,4569.3,4569.1,0.70118]
[1759741674366,0.7455,4569.2,4569.1,0.90588]
[1759741674569,0.7455,4569.2,4569.1,1.11718]
[1759741675471,0.7455,4569.2,4569.1,0.59849]
[1759741675672,0.7455,4569.2,4569.1,0.90589]
[1759741675973,0.7455,4569.2,4569.0,0.39379]
[1759741676273,0.5274,4568.9,4568.8,0.7234]
[1759741676569,0.5274,4568.9,4568.8,1.11721]
[1759741677165,0.7455,4568.9,4568.8,1.11721]
[1759741677367,0.2106,4568.9,4568.8,1.11721]
[1759741677670,0.5274,4568.9,4568.8,1.11721]
[1759741677872,0.7455,4568.9,4568.8,1.11721]
[1759741678667,0.9655,4568.9,4568.7,0.39381]
[1759741679373,0.6487,4568.9,4568.7,0.70121]
[1759741679575,0.7455,4568.8,4568.7,0.90591]
[1759741680363,0.7455,4568.8,4568.7,1.11721]
[1759741681169,0.22,4568.9,4568.7,1.11721]
[1759741681370,0.4306,4568.9,4568.8,0.3074]
[1759741681569,0.4306,4568.9,4568.8,0.7234]
[1759741681769,0.7455,4569.4,4569.3,0.80977]
[1759741681967,0.9655,4569.4,4569.3,1.11717]
[1759741682169,3.85193759,4569.4,4569.3,1.11717]
[1759741684065,3.63193759,4569.4,4569.3,1.11717]
[1759741684270,0.9655,4569.4,4569.3,1.11717]
[1759741684476,0.4306,4569.4,4569.3,1.11717]
[1759741684678,0.7474,4569.4,4569.3,1.11717]
[1759741685086,0.9655,4569.4,4569.3,1.11717]
[1759741685474,0.2106,4569.4,4569.3,1.11717]
[1759741685672,3.97e-06,4569.5,4569.3,0.80977]
[1759741686172,3.97e-06,4569.5,4569.4,0.3074]
[1759741686483,0.52740397,4569.5,4569.4,0.7234]
[1759741687570,1.05665397,4569.5,4569.4,41.0113]
[1759741687771,0.881,4569.0,4568.9,0.3938]
[1759741687974,0.9655,4569.0,4568.9,1.1172]
[1759741688278,0.4306,4569.0,4568.9,1.1172]
[1759741688477,0.9655,4569.0,4568.9,1.1172]
[1759741689374,1.101,4569.0,4568.9,0.7234]
[1759741689577,0.881,4568.5,4568.4,0.59855]
[1759741689773,0.881,4568.5,4568.4,0.90595]
[1759741690676,0.881,4568.5,4568.4,0.39385]
[1759741691071,0.881,4568.5,4568.4,0.59855]
[1759741691387,0.7455,4568.5,4568.4,1.11725]
[1759741691885,0.4287,4568.5,4568.4,1.11725]
[1759741692075,0.4306,4568.5,4568.4,1.11725]
[1759741692874,3.97e-06,4569.5,4569.4,0.39376]
[1759741693180,0.52740397,4569.5,4569.4,0.80976]
[1759741693377,0.43060397,4569.5,4569.4,1.11716]
[1759741693776,0.96550397,4569.5,4569.4,1.11716]
[1759741695083,1.10100397,4569.5,4569.4,0.7234]
[1759741695470,0.96550397,4569.5,4569.4,0.7234]
[1759741696384,1.10100397,4569.5,4569.3,0.39377]
[1759741697086,0.78420397,4569.5,4569.3,0.70117]
[1759741697385,0.7455,4569.4,4569.3,1.11717]
[1759741698274,0.9655,4569.4,4569.3,1.11717]
[1759741700179,0.9655,4569.4,4569.3,0.90587]
[1759741700385,0.2105,4569.2,4569.1,0.3381]
[1759741700682,0.7508,4569.1,4569.0,3.2078]
[1759741701078,0.7508,4569.1,4569.0,3.9949]
[1759741702794,0.7508,4569.1,4569.0,4.1246]
[1759741704187,0.7508,4569.1,4569.0,3.9949]
[1759741705784,0.3283,4569.4,4569.0,3.6756]
[1759741706090,0.7508,4569.4,4569.3,1.18087]
[1759741706282,0.9708,4569.4,4569.3,1.18087]
[1759741706484,3.80851498,4569.4,4569.3,1.18087]
[1759741707182,3.58851498,4569.4,4569.3,1.18087]
[1759741707382,0.4305,4569.4,4569.3,1.18087]
[1759741707882,0.22,4569.4,4569.3,1.18087]
[1759741708282,0.4305,4569.4,4569.3,1.18087]
[1759741709295,0.22,4569.4,4569.3,1.18087]
[1759741709693,0.4305,4569.4,4569.3,1.18087]
[1759741710884,3.97e-06,4569.5,4569.4,0.3381]
[1759741711091,0.43050397,4569.5,4569.4,0.7871]
[1759741711492,0.53880397,4569.5,4569.4,0.7871]
[1759741711688,0.22000397,4569.5,4569.4,0.7871]
[1759741711889,0.22000397,4569.5,4569.4,0.449]
[1759741712489,0.22000397,4569.5,4569.4,0.7871]
[1759741712684,3.97e-06,4569.5,4569.4,0.449]
[1759741714492,3.97e-06,4569.5,4569.4,41.249]
[1759741721495,0.72990397,4569.5,4569.4,41.1349]
[1759741721692,3.97e-06,4569.5,4569.4,40.8]
[1759741721993,3.97e-06,4569.5,4569.3,0.39377]
[1759741722402,3.97e-06,4569.5,4569.4,0.3349]
[1759741725297,0.51060397,4569.5,4569.4,0.7658]
[1759741728001,3.97e-06,4569.5,4569.4,0.4309]
[1759741730699,0.21860397,4569.5,4569.4,0.4309]
[1759741730895,0.21860397,4569.5,4569.4,0.7613]
[1759741731097,0.54100397,4569.5,4569.4,0.7613]
[1759741735005,0.76230397,4569.5,4569.4,0.7613]
[1759741735699,0.56430397,4569.5,4569.1,0.3304]
[1759741736003,0.7623,4569.2,4569.1,0.3304]
[1759741736705,0.83368,4569.2,4569.0,3.93199]
[1759741736904,0.7623,4569.1,4569.0,3.7631]
[1759741737096,0.4399,4568.5,4568.4,0.5553]
[1759741737299,0.83375,4568.4,4568.3,0.00238813]
[1759741737499,1.37615,4568.4,4568.3,0.00238813]
[1759741737905,0.7623,4568.4,4568.3,0.78338813]
[1759741738110,0.9823,4568.4,4568.3,0.78338813]